Cogmind - Beta 17 @@@ ROGUE MODE // 2026.08.17 @ 23:34:48 Player: Fedop Result: Destroyed by WJ-WF7(R) with Subdweller Machine Gun Performance ------------- Evolutions (0) 0 Regions Visited (2) 400 Robots Destroyed (33) 165 Value Destroyed (627) 627 Prototype IDs (3) 60 Alien Tech Used (0) 0 Bonus (0) 0 TOTAL SCORE: 1252 Bonus ------- None Cogmind --------- Core Integrity 0/250 Matter 178/300 Energy 98/100 System Corruption 0% Temperature Cool (0) Movement Treading (160) Location -10/Subcaves Parts ------- > --- POWER (1) -------- (None) > --- PROPULSION (2) --- Improved Treads Improved Treads > --- UTILITY (2) ------ Large Storage Unit Propulsion Shielding > --- WEAPON (2) ------- Particle Gun Light Cannon > --- INVENTORY (15) --- Improved Treads Improved Treads Subdweller Monowheel Heat Sink Disposable Heat Sink Subdweller Optics Seismic Detector Propulsion Shielding Riot Gun Particle Gun Particle Gun Mining Claw Peak State ------------ > --- POWER ------------ Backup Power III > --- PROPULSION ------- Backup Propulsion III Backup Propulsion III > --- UTILITY ---------- Large Storage Unit Backup Plating III > --- WEAPON ----------- Backup Laser III Backup Laser III > --- INVENTORY -------- Light Ion Engine Light Nuclear Core Light Treads Light Treads Heat Sink Huge Storage Unit Seismic Detector Light Assault Rifle Light Assault Rifle Light Cannon Light Cannon Mining Claw [Rating: 20] Favorites ----------- Power Light Nuclear Core Engine Ion Engine Power Core Light Nuclear Core Propulsion Light Treads Treads Light Treads Hover Unit Backup Propulsion III Utility Large Storage Unit Device Seismic Detector Storage Large Storage Unit Processor Targeting Computer Protection Backup Plating III Weapon Light Assault Rifle Energy Gun Particle Gun Ballistic Gun Light Assault Rifle Ballistic Cannon Light Cannon Special Weapon Flamer Slashing Weapon Mining Claw Build | -11 -10 -10 ------- Run | Yrd Mat Sub Slots Evolved . | . . . Power . | . . . Propulsion . | . . . Utility . | . . . Weapon . | . . . Parts Attached 30 | 8 11 11 Power 5 | 1 2 2 Engine 4 | 1 1 2 Core 1 | . 1 . Reactor . | . . . Propulsion 5 | 2 1 2 Treads 4 | 2 . 2 Leg . | . . . Wheel . | . . . Hover 1 | . 1 . Flight . | . . . Utility 8 | 2 3 3 Device 2 | 1 . 1 Storage 2 | 1 1 . Processor 1 | . 1 . Hackware . | . . . Protection 3 | . 1 2 Artifact . | . . . Weapon 12 | 3 5 4 Energy Gun 5 | 1 2 2 Energy Cannon . | . . . Ballistic Gun 3 | 2 . 1 Ballistic Cannon 2 | . 2 . Launcher . | . . . Special Weapon 1 | . . 1 Impact Weapon . | . . . Slashing Weapon 1 | . 1 . Piercing Weapon . | . . . Special Melee Weapon . | . . . Unidentified Prototypes . | . . . Parts Lost 7 | . . 7 Power 3 | . . 3 Propulsion 2 | . . 2 Utility 1 | . . 1 Weapon 1 | . . 1 Highest Loss Streak 4 | . . 4 To Critical Strikes . | . . . Average Backups 9 | . 8 14 Power 1 | . 1 . Propulsion 2 | . 1 5 Utility 3 | . 3 4 Weapon 2 | . 2 3 Tool/Special . | . . . Unused Backups 9 | . 2 7 Power . | . . . Propulsion 3 | . . 3 Utility 5 | . 2 3 Weapon 1 | . . 1 Tool/Special . | . . . Average Slot Usage (%) 97 | . 97 97 Engine 8 | . 7 11 Core 4 | . 6 . Treads 27 | . 26 28 Device 5 | . 4 9 Storage 14 | . 14 14 Processor 5 | . 7 . Protection 2 | . 1 4 Energy Gun 6 | . 3 17 Ballistic Gun 10 | . 12 . Ballistic Cannon 9 | . 10 7 Peak Build Rating 20 | 7 20 14 Average Rating 9 | 5 8 11 On Entrance 5 | . 7 10 Avg Prop Armor Cover (%) . | . . . Naked Turns . | . . . Heaviest Build 33 | 13 33 31 Greatest Support 46 | 40 40 46 Greatest Overweight (x) 9 | . 9 . Average Overweight (x) . | . . . Largest Inventory Capacity 15 | 8 15 15 Average Capacity 11 | 7 11 15 Most Carried 15 | 1 15 15 Average Carried 9 | . 8 14 Final Capacity 15 | 8 15 15 Final Carried 15 | 1 15 12 Class Distribution -------------------- 100% | Mutant Dominant Class ---------------- Mutant | -10/Materials Mutant | -10/Subcaves Resources | -11 -10 -10 ----------- Run | Yrd Mat Sub Matter Collected 1017 | 286 643 88 Remotely . | . . . Salvage Created 895 | 173 576 146 Parts 54 | 13 30 11 Haulers Intercepted 1 | . 1 . Recyclers Shooed 1 | 1 . . Parts Field Recycled . | . . . Retrieved Matter . | . . . Parts Self-Destructed 7 | . . 7 Prevented . | . . . Parts Restored . | . . . Kills | -11 -10 -10 ------- Run | Yrd Mat Sub Combat Hostiles Destroyed 21 | . 14 7 Melee 3 | . 3 . Guns 11 | . 7 4 Cannons 5 | . 4 1 AOE 1 | . . 1 Classes Destroyed 9 | 2 5 2 Worker 1 | . 1 . Tunneler 4 | 4 . . Hauler 1 | . 1 . Recycler 3 | 1 2 . Watcher 3 | . 3 . Swarmer 10 | . 6 4 Grunt 8 | . 8 . Sentry 1 | . . 1 Subdweller 2 | . . 2 Best Kill Streak 4 | 3 4 2 Combat Bots Only 3 | . 3 2 Max Kills in Single Turn 1 | 1 1 1 Gunslinging . | . . . Exploded 1 | . . 1 Melee 1 | . 1 . Uniques/NPCs Destroyed . | . . . Combat | -11 -10 -10 -------- Run | Yrd Mat Sub Hostile Shots Fired 180 | . 69 111 Missed 50 | . 10 40 Hits 130 | . 59 71 Projectile 130 | . 59 71 Critical Strikes 1 | . . 1 Damage Taken 1493 | . 576 917 Core 273 | . 112 161 Absorbed by Shields . | . . . Redirected to Shielding 41 | . . 41 Regen/Repaired (Parts) 128 | . 128 . Core Remaining (%) 100 | 100 . . Volleys Fired 122 | 15 83 24 Largest 2 | 2 2 2 Hottest 165 | 40 95 165 Shots Fired 239 | 30 163 46 Gun 172 | 30 114 28 Cannon 62 | . 49 13 Launcher . | . . . Special 5 | . . 5 Kinetic 200 | 30 157 13 Thermal 37 | . 6 31 Explosive . | . . . Electromagnetic 2 | . . 2 Robot Hit Streak 15 | 4 15 11 Robot Miss Streak 5 | 3 5 3 Penetration Max . | . . . Secondary Targets . | . . . Shots Hit Robots 153 | 16 103 34 Core Hits 48 | 9 30 9 Critical Kills . | . . . Critical Parts Destroyed 1 | . 1 . Critical Strikes 6 | . 3 3 Burn 3 | . . 3 Destroy 1 | . 1 . Blast 2 | . 2 . Melee Attacks 11 | . 11 . Impact . | . . . Slashing 11 | . 11 . Piercing . | . . . Sneak Attacks 1 | . 1 . Combat Hostiles . | . . . Follow-up Attacks . | . . . Damage Inflicted 2058 | 142 1339 577 Guns 1005 | 142 554 309 Cannons 800 | . 632 168 Explosions 37 | . . 37 Melee 138 | . 138 . Ramming 15 | . 15 . Kinetic 1424 | 142 1114 168 Thermal 473 | . 72 401 Explosive . | . . . Electromagnetic 8 | . . 8 Impact . | . . . Slashing 138 | . 138 . Piercing . | . . . Highest Corruption . | . . . Average Corruption . | . . . Corruption Purged . | . . . Corruption Blocked . | . . . Overload Shots . | . . . Overflow Damage 42 | . 42 . Projectiles 21 | . 21 . Explosions . | . . . Melee 21 | . 21 . Knockbacks 5 | . 4 1 Impact 1 | . 1 . Kinetic 4 | . 3 1 Secondary . | . . . Self-Inflicted Damage 29 | . . 29 Shots 1 | . . 1 Rammed 2 | . 2 . Targets Rammed 2 | . 2 . Kicked . | . . . Crushed . | . . . Highest Temperature 99 | . 99 10 Average Temperature 17 | . 18 3 Received Heat Transfer 459 | . 165 294 Siege Activations . | . . . Martial Activations . | . . . Shielding Activations . | . . . Robots Disrupted . | . . . Combat Hostiles . | . . . Robots Corrupted . | . . . Combat Hostiles . | . . . Parts Fried . | . . . Impact Corruptions . | . . . Robots Melted 1 | . . 1 Combat Hostiles 1 | . . 1 Parts Melted 4 | . . 4 Heat Transferred 1646 | . 185 1461 Parts Sabotaged . | . . . Parts Stolen . | . . . Parts Stripped . | . . . Power Chain Reactions 1 | . . 1 Alert | -11 -10 -10 ------- Run | Yrd Mat Sub Maximum Alert Level . | . . . Low Security (%) 100 | 100 100 . Level 1 . | . . . Level 2 . | . . . Level 3 . | . . . Level 4 . | . . . Level 5 . | . . . High Security . | . . . Max Security . | . . . Peak Influence 148 | 10 148 . Initial . | . . . Average 20 | 1 21 . Influence Increases 825 | 25 490 310 Destroy 0b10 Robot/C 380 | . 280 100 Destroy 0b10 Robot/NC 60 | 25 35 . Destroy Leader 58 | . 58 . Successful Hack 39 | . 39 . Disable Machine 30 | . 30 . Destroy Structure 3 | . 3 . Lose Combat Pursuer 255 | . 45 210 Influence Decreases 681 | 25 488 168 Entered New Map 2 | . . 2 Time Decay 507 | 25 346 136 Lost Part 30 | . . 30 Purge Threat 142 | . 142 . Squads Dispatched 2 | . 2 . Investigation 2 | . 2 . Extermination . | . . . Reinforcement . | . . . Assault . | . . . Garrison . | . . . Intercept . | . . . Searches Triggered . | . . . Construction Impeded . | . . . Haulers Reinforced . | . . . Active Scanning Responses . | . . . Cargo Convoy Interrupts . | . . . Stealth | -11 -10 -10 --------- Run | Yrd Mat Sub Distress Signals 2 | . 2 . Communications Jammed . | . . . Distress Signals . | . . . Times Spotted 45 | . 28 17 Peak Tracking Total 5 | . 4 5 Tactical Retreats 9 | . 2 7 Traps | -11 -10 -10 ------- Run | Yrd Mat Sub Traps Triggered 5 | . 5 . Indirectly . | . . . Trap Hack Attempts . | . . . Triggered . | . . . Disarmed . | . . . Reprogrammed . | . . . Reused . | . . . Traps Extracted . | . . . Installed . | . . . Triggered . | . . . Machines | -11 -10 -10 ---------- Run | Yrd Mat Sub Machines Disabled 2 | . 2 . Max in Single Turn 1 | . 1 . Machines Repaired . | . . . Machines Dismantled . | . . . Machines Sabotaged . | . . . Overloaded Fab Kills . | . . . Hacking | -11 -10 -10 --------- Run | Yrd Mat Sub Machines Accessed 8 | . 8 . Terminals 6 | . 6 . Fabricators . | . . . Repair Stations 1 | . 1 . Recycling Units 1 | . 1 . Scanalyzers . | . . . Garrison Access . | . . . Total Hacks 25 | . 25 . Successful 18 | . 18 . Failed 7 | . 7 . Catastrophic . | . . . Database Lockouts . | . . . Manual 13 | . 13 . Terminals 19 | . 19 . Fabricators . | . . . Repair Stations 5 | . 5 . Recycling Units 1 | . 1 . Scanalyzers . | . . . Garrison Access . | . . . Terminal Hacks 8 | . 8 . Robot Analysis 1 | . 1 . Prototype ID Bank 2 | . 2 . Level Access Points 1 | . 1 . Unreport Threat 1 | . 1 . Hauler Manifests 1 | . 1 . Registered Components 2 | . 2 . Fabricator Hacks . | . . . Repair Station Hacks 3 | . 3 . Scan Component 1 | . 1 . Repair 1 | . 1 . Refit 1 | . 1 . Recycling Unit Hacks 1 | . 1 . Report Inventory 1 | . 1 . Scanalyzer . | . . . Garrison Access Hacks . | . . . Unauthorized Hacks 6 | . 6 . Terminals 6 | . 6 . Botnet 6 | . 6 . Fabricators . | . . . Repair Stations . | . . . Recycling Units . | . . . Scanalyzers . | . . . Garrison Access . | . . . Data Cores Recovered . | . . . Used . | . . . Hacking Detections 7 | . 7 . Full Trace Events 1 | . 1 . Feedback Events . | . . . Feedback Blocked . | . . . Robot Schematics Acquired . | . . . Robots Built . | . . . Authchips . | . . . Time . | . . . Total Robot Build Rating . | . . . Part Schematics Acquired . | . . . Parts Built . | . . . Authchips . | . . . Time . | . . . Total Part Build Rating . | . . . Part Studies Acquired . | . . . Parts Repaired 1 | . 1 . Time 13 | . 13 . Parts Recycled . | . . . Recycled Matter . | . . . Retrieved Matter . | . . . Retrieved Components . | . . . Parts Scanalyzed . | . . . Part Schematics Acquired . | . . . Parts Damaged . | . . . Bothacking | -11 -10 -10 ------------ Run | Yrd Mat Sub Used RIF Installer . | . . . Robots Hacked . | . . . Non-combat . | . . . Combat . | . . . Robot Hacks Applied . | . . . Relay Couplers Released . | . . . Fabnet Peak Effective % . | . . . Robots Rewired . | . . . Allies Hacked . | . . . Hacks Repelled . | . . . Allies | -11 -10 -10 -------- Run | Yrd Mat Sub Total Allies . | . . . Largest Group . | . . . Highest-Rated Group . | . . . Highest-Rated Ally . | . . . Total Orders . | . . . Ally Attacks . | . . . Total Damage . | . . . Kills . | . . . Allies Corrupted . | . . . Allies Melted 1 | . . 1 Intel | -11 -10 -10 ------- Run | Yrd Mat Sub Active Infowar (turns) 1005 | 34 765 206 Seismic 1005 | 34 765 206 Robot Analysis Total 1 | . 1 . Derelict Logs Recovered 1 | . . 1 Drone Launches . | . . . Drone Recoveries . | . . . Exploration | -11 -10 -10 ------------- Run | Yrd Mat Sub Turns Passed 2863 | 169 2174 520 Spaces Moved 1275 | 76 994 205 Core 24 | 4 20 . Treads 1250 | 72 973 205 Legs . | . . . Wheels . | . . . Hover 1 | . 1 . Flight . | . . . Fastest Speed 50 | 50 156 160 Average Speed 163 | 154 164 160 Slowest Speed 500 | 160 500 160 Overloaded Moves . | . . . Propulsion Burnouts . | . . . Robots Hopped . | . . . Potential Cave-ins . | . . . Cave-ins Triggered . | . . . Exploration Rate (%) 37 | 4 94 13 Regions Visited 2 Branch Regions 1 Pre-discovered Areas . | . . . Known Exits Taken . | . . . Unknown Exits Taken 2 | 1 1 . Scrap Searched . | . . . Spaces Dug . | . . . Terrain Destroyed 3 | . . 3 Melee . | . . . Projectile . | . . . AOE 3 | . . 3 Terrain Rammed . | . . . Walls Destroyed . | . . . Machines Disabled . | . . . Actions | -11 -10 -10 --------- Run | Yrd Mat Sub Total 1812 | 100 1368 344 Wait 283 | . 194 89 Move 1273 | 75 993 205 Hop . | . . . Pick Up 30 | 1 25 4 Fast Attach 17 | 8 7 2 Attach 12 | . 5 7 Detach 10 | . 8 2 Swap 30 | . 22 8 Drop 22 | 1 18 3 Fire 122 | 15 83 24 Melee 11 | . 11 . Ram . | . . . Kick . | . . . Crush 2 | . 2 . Escape Stasis . | . . . Rewire . | . . . Trap . | . . . Miscellaneous . | . . . Route ------- -11/Scrapyard -10/Materials (discovered 6 exits: *Mat x3 / [*Min x2] / [*Sub]) -10/Subcaves (discovered 1 exit: *Rec) History --------- Turn | Location | Event 6 | -11/Scrapyard | Discovered new exit (range 15) 170 | -11/Scrapyard | Entered Materials 305 | -10/Materials | Build established: Mutant 317 | -10/Materials | Discovered new exit (range 8) 536 | -10/Materials | Discovered new exit (range 4) 581 | -10/Materials | Discovered new exit (range 15) 887 | -10/Materials | Discovered new exit (range 8) 1190 | -10/Materials | Discovered new exit (range 8) 1390 | -10/Materials | Identified exit to Materials 2295 | -10/Materials | Repaired Lgt. Treads 2344 | -10/Materials | Entered Subcaves 2345 | -10/Subcaves | Approached by a straggling Scientist 2360 | -10/Subcaves | Curiously followed by a Cobbler waking with a query about "LVR3C" 2371 | -10/Subcaves | Identified exit to Recycling 2460 | -10/Subcaves | Core integrity fell below 50% 2537 | -10/Subcaves | Lost 4 parts (2p1n1u) 2577 | -10/Subcaves | Core integrity fell below 20% 2747 | -10/Subcaves | Shifting Twisted Machinery released Mak. Thermal Plating 2864 | -10/Subcaves | Destroyed by WJ-WF7(R) with Subdweller Machine Gun Last Messages --------------- 02612_ Lgt. Assault Rifle fries itself beyond repair. 02644_ Flamer destroyed. 02646_ S-10 Pest destroyed. 02654_ Acquired 16 matter. 02656_ Lgt. Assault Rifle fries itself beyond repair. 02657_ Flight Unit fries itself beyond repair. 02663_ Lgt. Ion Engine fries itself beyond repair. 02679_ Acquired Riot Gun. Mak. Thermal Plating falls loose from the Twisted Machinery. 02764_ Lgt. Ion Engine destroyed. 02777_ Chain reaction triggered in Lgt. Ion Engine. 02777_ S-10 Pest destroyed. 02782_ Dropped Backup Propulsion III. 02784_ Acquired Lgt. Assault Rifle. 02814_ Dropped Lgt. Assault Rifle. 02826_ Lgt. Treads destroyed. 02829_ Autobeam Turret suffers critical hit (Burn). 02832_ YR-Q0Y(O) cries out in pain. 02832_ YR-Q0Y(O) destroyed. 02864_ Subatomizers dissect the Lgt. Assault Rifle. Map ----- +----------------------------------------------------+ | ?????????????????????????????????????????????????? | | ?????????????????????????????????????????????????? | | ?????????????????????????????????????????????????? | | ?????????????????????????????????????????????????? | | ???????????????????? ????????????????????????????? | | ???????????????????# ???????????????????????????? | | ???????????????????# ?????????????????????????? | | ???????????????????# ?????????????????????????? | | ???????????????????# ##???????????""##????????? | | ???????????????????# ??????????"" #????????? | | ???????????????????# ?????????? "#?????????? | | ????????????????????# ????######!"#?????????? | | ?????????????????????# #???# ##????????? | | ?????????????????????# #???# ##???????? | | ??????????????????????# ##### ##??????? | | ???????????????????#### ## #??????? | | ??????????????????## ## #??????? | | ?????????????????## #??????? | | ????????????????## #??????? | | ???????????? #### = ## #??????? | | ??????????? % #??????????? | | ??????????? ###????????? | | ?????????? ##???????? | | ???????????? ## ### #???????? | | ???????????? ## ###?# ##???????? | | ?????????????? ## @ =;##?### #????????? | | ?????????????? ??## [;#####" #????????? | | ????????????????????# #;### ####????????? | | ????????????????????# % ###?# ####???????????? | | ????????????????????# #??## ##??????????????? | | ????????????????????## #??# ##???????????????? | | ????????????????????? ??# #????????????????? | | ???????????????????? ??# ######???????????? | | ??????????????????? O ??## # # ##??????????? | | ??????????????????#"% t ???# #??????????? | | ??????????????????#" " " ???# #??????????? | | ??????????????????#"""" ""???#### #??????????? | | ??????????????????#####>###???### ### #????????? | | ??????????????????????##?????## # #???? #???????? | | ?????????????????????????????# ##?????????????? | | ?????????????????????????????# ###??????????????? | | ?????????????????????????????# ##?#?????????????? | | ?????????????????????????????# # ## #????????? | | ????????????????????????????#" #????????? | | ????????????????????????????# ## ## #????????? | | ??????????????????????????### #?###????????????? | | ??????????????????????????# % ##???????????????? | | ??????????????????????????#% ##??????????????? | | ?????????????????????????## ##?????????????? | | ???????????????????####### #?????????????? | +----------------------------------------------------+ Best States ------------- Heat Dissipation 35 Energy Generation 14 Energy Capacity 250 Matter Stores 300 Matter Capacity 300 Sight Range 16 Terrain Scan Density 10 Armor Coverage 80 Core Shielding 20 Propulsion Shielding 33 Evasion (%) 40 Targeting Accuracy 5 Recoil Reduction 2 Item Schematics ----------------- None Robot Schematics ------------------ None Fabricated ------------ Nothing Repaired ---------- Lgt. Treads | 8% | -10/Materials Studied --------- None Alien Tech Used ----------------- None Achievements -------------- None Challenges ------------ None Game ------ Seed GodAmuletMicroactuators Manual? 0 Play Time 00:49:11 Cumulative 66.9 hours Start 2026.08.17 @ 22:15:03 End 2026.08.17 @ 23:34:48 Sessions 1 Manual Loads 0 Difficulty Rogue Special Mode None Game No. 51 Rogue 51 Adventurer 0 Explorer 0 Win Type - Total 0 Types 0/0/0/0/0/0/0/0/0/0 Lore% 30 Gallery% 35 Achievement% 28 Wizard Run 0 Options --------- Layout 0 ASCII 0 Keyboard 1 Movement Vi Keybinds 0 Fullscreen 2 Font 18/SmallcapsGlow Map View 76x50 Zoom Use 1% Tactical HUD 1 Map Filters NONE Filters NONE Steam 1 RUN: 278e69d8-3247-42f9-88ae-1566d13f01ef